Workbook

Sheet Wishlist
C2: =COUNT(C6:C992) -> 187
B4: =TODAY() -> 2019-06-29 | C4: =TODAY() -> 2019-06-29 | D4: Desert Skies | E4: 0 | F4: 0.2 | G4: =TODAY() -> 2019-06-29 | H4: =IFERROR(E4*(1-F4),0) -> 0 | I4: =($G$4-C4)/365 -> 0
B5: Bought | C5: Added | D5: Game Name | E5: Price | F5: Disc | G5: Last Disc | H5: Total | I5: Age | J5: Notes
C6: 2017-09-14 | D6: 3030 Deathwar Redux - A Space Odyssey | E6: 14.99 | F6: 0.67 | G6: 2018-12-29 | H6: =IFERROR(E6*(1-F6),0) -> 4.9467 | I6: =($G$4-C6)/365 -> 1.789041096 | K6: 0.5 | L6: 2019-06-25
C7: 2017-03-06 | D7: 911 Operator | E7: 14.99 | F7: 0.75 | G7: 2019-05-07 | H7: =IFERROR(E7*(1-F7),0) -> 3.7475 | I7: =($G$4-C7)/365 -> 2.315068493 | K7: 0.7 | L7: 2019-06-25
C8: 2018-02-24 | D8: Abandon Ship | E8: 19.99 | F8: 0.3 | G8: 2019-06-25 | H8: =IFERROR(E8*(1-F8),0) -> 13.993 | I8: =($G$4-C8)/365 -> 1.342465753 | K8: 0.25 | L8: 2018-02-24
C9: 2017-08-20 | D9: Agents of Mayhem | E9: 29.99 | F9: 0.8 | G9: 2019-06-25 | H9: =IFERROR(E9*(1-F9),0) -> 5.998 | I9: =($G$4-C9)/365 -> 1.857534247 | K9: 0.8 | L9: 2018-12-29
C10: 2018-07-18 | D10: AI War 2 | E10: 19.99 | F10: 0.25 | G10: 2019-06-25 | H10: =IFERROR(E10*(1-F10),0) -> 14.9925 | I10: =($G$4-C10)/365 -> 0.9479452055 | K10: 0.2 | L10: 2018-12-29
C11: 2018-01-09 | D11: Airport CEO | E11: 15.99 | F11: 0.3 | G11: 2019-06-25 | H11: =IFERROR(E11*(1-F11),0) -> 11.193 | I11: =($G$4-C11)/365 -> 1.468493151 | K11: 0.3 | L11: 2018-12-29
C12: 2016-12-25 | D12: Aragami | E12: 19.99 | F12: 0.5 | G12: 2019-06-25 | H12: =IFERROR(E12*(1-F12),0) -> 9.995 | I12: =($G$4-C12)/365 -> 2.509589041 | K12: 0.5 | L12: 2018-10-31
C13: 2018-08-05 | D13: Artemis Spaceship Bridge Simulator | E13: 6.99 | F13: 0 | G13: 2018-08-05 | H13: =IFERROR(E13*(1-F13),0) -> 6.99 | I13: =($G$4-C13)/365 -> 0.898630137
C14: 2016-12-20 | D14: Ashes of the Singularity: Escalation | E14: 29.99 | F14: 0.67 | G14: 2019-06-25 | H14: =IFERROR(E14*(1-F14),0) -> 9.8967 | I14: =($G$4-C14)/365 -> 2.523287671 | K14: 0.67 | L14: 2018-10-23
C15: 2016-06-24 | D15: Assassin's Creed IV Black Flag | E15: 19.99 | F15: 0.66 | G15: 2019-03-03 | H15: =IFERROR(E15*(1-F15),0) -> 6.7966 | I15: =($G$4-C15)/365 -> 3.01369863 | K15: 0.66 | L15: 2019-06-25
C16: 2016-09-18 | D16: ASTRONEER | E16: 19.99 | F16: 0.25 | G16: 2019-06-25 | H16: =IFERROR(E16*(1-F16),0) -> 14.9925 | I16: =($G$4-C16)/365 -> 2.778082192 | K16: 0.2 | L16: 2018-11-17
C17: 2018-07-18 | D17: Automation - The Car Company Tycoon Game | E17: 29.99 | F17: 0.15 | G17: 2019-06-25 | H17: =IFERROR(E17*(1-F17),0) -> 25.4915 | I17: =($G$4-C17)/365 -> 0.9479452055 | K17: 0.15 | L17: 2018-10-31
C18: 2017-02-13 | D18: Avorion | E18: 17.99 | F18: 0.25 | G18: 2018-11-26 | H18: =IFERROR(E18*(1-F18),0) -> 13.4925 | I18: =($G$4-C18)/365 -> 2.37260274
C19: 2018-12-09 | D19: Battlefleet Gothic: Armada 2 | E19: 39.99 | F19: 0.33 | G19: 2019-06-25 | H19: =IFERROR(E19*(1-F19),0) -> 26.7933 | I19: =($G$4-C19)/365 -> 0.5534246575 | K19: 0.1 | L19: 2018-12-09
C20: 2018-09-10 | D20: BATTLETECH Flashpoint | E20: 19.99 | F20: 0.25 | G20: 2019-06-25 | H20: =IFERROR(E20*(1-F20),0) -> 14.9925 | I20: =($G$4-C20)/365 -> 0.8 | K20: 0.1 | L20: 2018-10-23 | M20: 0.25 | N20: 2019-05-30
C21: 2018-01-04 | D21: Block'hood | E21: 14.99 | F21: 0.75 | G21: 2019-06-25 | H21: =IFERROR(E21*(1-F21),0) -> 3.7475 | I21: =($G$4-C21)/365 -> 1.482191781 | K21: 0.66 | L21: 2018-11-23
C22: 2017-12-17 | D22: Bomber Crew | E22: 14.99 | F22: 0.66 | G22: 2019-06-25 | H22: =IFERROR(E22*(1-F22),0) -> 5.0966 | I22: =($G$4-C22)/365 -> 1.531506849 | K22: 0.6 | L22: 2018-12-29
C23: 2018-09-16 | D23: Breathedge | E23: 15.99 | F23: 0.2 | G23: 2018-10-31 | H23: =IFERROR(E23*(1-F23),0) -> 12.792 | I23: =($G$4-C23)/365 -> 0.7835616438
C24: 2017-09-15 | D24: Brick Rigs | E24: 14.99 | F24: 0.33 | G24: 2018-10-31 | H24: =IFERROR(E24*(1-F24),0) -> 10.0433 | I24: =($G$4-C24)/365 -> 1.78630137 | K24: 0.3 | L24: 2019-06-25
C25: 2018-10-17 | D25: Bridge Constructor Portal | E25: 9.99 | F25: 0.5 | G25: 2019-06-06 | H25: =IFERROR(E25*(1-F25),0) -> 4.995 | I25: =($G$4-C25)/365 -> 0.698630137 | K25: 0.3 | L25: 2018-12-29 | M25: 0.3 | N25: 2019-06-25
C26: 2019-04-30 | D26: Car Mechanic Flipper | E26: Soon | F26: 0 | G26: 2019-04-30 | H26: =IFERROR(E26*(1-F26),0) -> 0 | I26: =($G$4-C26)/365 -> 0.1643835616 | J26: Coming Soon
C27: 2017-08-20 | D27: Car Mechanic Simulator 2018 | E27: 19.99 | F27: 0.55 | G27: 2019-06-25 | H27: =IFERROR(E27*(1-F27),0) -> 8.9955 | I27: =($G$4-C27)/365 -> 1.857534247 | K27: 0.52 | L27: 2019-05-22
C28: 2018-09-30 | D28: Carrier Command: Gaea Mission | E28: 32.99 | F28: 0.8 | G28: 2019-06-25 | H28: =IFERROR(E28*(1-F28),0) -> 6.598 | I28: =($G$4-C28)/365 -> 0.7452054795 | K28: 0.8 | L28: 2018-11-23
C29: 2017-08-15 | D29: Carrier Deck | E29: 9.99 | F29: 0.5 | G29: 2019-06-25 | H29: =IFERROR(E29*(1-F29),0) -> 4.995 | I29: =($G$4-C29)/365 -> 1.871232877 | K29: 0.5 | L29: 2018-11-23
C30: 2017-08-20 | D30: Castle Story | E30: 24.99 | F30: 0.6 | G30: 2019-06-25 | H30: =IFERROR(E30*(1-F30),0) -> 9.996 | I30: =($G$4-C30)/365 -> 1.857534247 | K30: 0.5 | L30: 2018-12-29
C31: 2017-01-17 | D31: Celestial Command | E31: 10.99 | F31: 0.25 | G31: 2018-12-29 | H31: =IFERROR(E31*(1-F31),0) -> 8.2425 | I31: =($G$4-C31)/365 -> 2.446575342 | K31: 0.2 | L31: 2019-06-25
C32: 2019-04-04 | D32: Champions of Midgard (Board Game) | E32: Soon | F32: 0 | G32: 2019-04-04 | H32: =IFERROR(E32*(1-F32),0) -> 0 | I32: =($G$4-C32)/365 -> 0.2356164384 | J32: Coming Soon
C33: 2018-12-09 | D33: Chef: A Restaurant Tycoon Game | E33: 19.99 | F33: 0.25 | G33: 2019-06-25 | H33: =IFERROR(E33*(1-F33),0) -> 14.9925 | I33: =($G$4-C33)/365 -> 0.5534246575 | K33: 0.1 | L33: 2018-12-09
C34: 2018-09-16 | D34: Chessaria: The Tactical Adventure | E34: 19.99 | F34: 0.5 | G34: 2019-06-25 | H34: =IFERROR(E34*(1-F34),0) -> 9.995 | I34: =($G$4-C34)/365 -> 0.7835616438 | K34: 0.4 | L34: 2018-10-31
C35: 2018-09-16 | D35: Cogmind | E35: 19.99 | F35: 0.1 | G35: 2019-06-25 | H35: =IFERROR(E35*(1-F35),0) -> 17.991 | I35: =($G$4-C35)/365 -> 0.7835616438 | K35: 0.1 | L35: 2018-10-31
C36: 2017-06-05 | D36: Cold Waters | E36: 39.99 | F36: 0.5 | G36: 2019-06-25 | H36: =IFERROR(E36*(1-F36),0) -> 19.995 | I36: =($G$4-C36)/365 -> 2.065753425 | J36: Hunt for Red October remake | K36: 0.5 | L36: 2018-12-29
C37: 2018-09-18 | D37: Concealed Intent | E37: 14.99 | F37: 0.8 | G37: 2018-11-23 | H37: =IFERROR(E37*(1-F37),0) -> 2.998 | I37: =($G$4-C37)/365 -> 0.7780821918
C38: 2019-04-04 | D38: Cottage Garden | E38: 6.99 | F38: 0 | G38: 2019-04-04 | H38: =IFERROR(E38*(1-F38),0) -> 6.99 | I38: =($G$4-C38)/365 -> 0.2356164384
C39: 2016-02-06 | D39: Crusader Kings II | E39: 39.99 | F39: 0.75 | G39: 2019-06-25 | H39: =IFERROR(E39*(1-F39),0) -> 9.9975 | I39: =($G$4-C39)/365 -> 3.394520548 | K39: 0.75 | L39: 2018-11-23
C40: 2019-03-03 | D40: Dawn of Man | E40: 24.99 | F40: 0.15 | G40: 2019-03-03 | H40: =IFERROR(E40*(1-F40),0) -> 21.2415 | I40: =($G$4-C40)/365 -> 0.3232876712
C41: 2019-06-29 | D41: Desert Skies | E41: 19.99 | F41: 0 | G41: 2019-06-29 | H41: =IFERROR(E41*(1-F41),0) -> 19.99 | I41: 0
C42: 2018-03-11 | D42: Divinity: Original Sin 2 - Definitive Edition | E42: 44.99 | F42: 0.4 | G42: 2019-06-25 | H42: =IFERROR(E42*(1-F42),0) -> 26.994 | I42: =($G$4-C42)/365 -> 1.301369863 | K42: 0.4 | L42: 2019-05-07
C43: 2019-05-14 | D43: Dream Car Builder | E43: 9.99 | F43: 0.35 | G43: 2019-06-25 | H43: =IFERROR(E43*(1-F43),0) -> 6.4935 | I43: =($G$4-C43)/365 -> 0.1260273973 | J43: Early Access | K43: 0.35 | L43: 2019-05-14
C44: 2019-05-22 | D44: Druidstone: The Secret of the Menhir Forest | E44: 24.99 | F44: 0.35 | G44: 2019-06-25 | H44: =IFERROR(E44*(1-F44),0) -> 16.2435 | I44: =($G$4-C44)/365 -> 0.104109589 | K44: 0.05 | L44: 2019-05-22
C45: 2017-03-23 | D45: Dungeon Painter Studio | E45: 14.99 | F45: 0 | G45: 2017-03-23 | H45: =IFERROR(E45*(1-F45),0) -> 14.99 | I45: =($G$4-C45)/365 -> 2.268493151
C46: 2018-03-08 | D46: Dungeons 3 | E46: 39.99 | F46: 0.75 | G46: 2019-06-25 | H46: =IFERROR(E46*(1-F46),0) -> 9.9975 | I46: =($G$4-C46)/365 -> 1.309589041 | K46: 0.7 | L46: 2018-11-23
C47: 2016-05-19 | D47: Duskers | E47: 19.99 | F47: 0.5 | G47: 2019-06-25 | H47: =IFERROR(E47*(1-F47),0) -> 9.995 | I47: =($G$4-C47)/365 -> 3.112328767 | K47: 0.5 | L47: 2018-12-29
C48: 2018-02-01 | D48: Dwarf Fortress | E48: 24.99 | F48: 0.36 | G48: 2018-11-17 | H48: =IFERROR(E48*(1-F48),0) -> 15.9936 | I48: =($G$4-C48)/365 -> 1.405479452 | J48: Onlya available from time-to-time. Will say "Coming Soon" if not currently offered.
C49: 2018-09-18 | D49: Earth Defense Force 4.1 The Shadow of New Despair | E49: 19.99 | F49: 0.5 | G49: 2019-06-25 | H49: =IFERROR(E49*(1-F49),0) -> 9.995 | I49: =($G$4-C49)/365 -> 0.7780821918 | K49: 0.25 | L49: 2018-09-18
C50: 2018-01-24 | D50: Eco | E50: 29.99 | F50: 0.15 | G50: 2019-06-25 | H50: =IFERROR(E50*(1-F50),0) -> 25.4915 | I50: =($G$4-C50)/365 -> 1.42739726 | K50: 0.1 | L50: 2019-06-06
C51: 2019-05-14 | D51: Empires of the Undergrowth | E51: 19.99 | F51: 0 | G51: 2019-05-14 | H51: =IFERROR(E51*(1-F51),0) -> 19.99 | I51: =($G$4-C51)/365 -> 0.1260273973 | J51: Ant colony management. Said to be a short game, so wait for sale.
C52: 2016-12-30 | D52: Endless Space 2 | E52: 39.99 | F52: 0.66 | G52: 2019-06-25 | H52: =IFERROR(E52*(1-F52),0) -> 13.5966 | I52: =($G$4-C52)/365 -> 2.495890411 | K52: 0.66 | L52: 2018-11-23
C53: 2018-11-28 | D53: Equilinox | E53: 9.99 | F53: 0.25 | G53: 2019-06-25 | H53: =IFERROR(E53*(1-F53),0) -> 7.4925 | I53: =($G$4-C53)/365 -> 0.5835616438 | K53: 0.25 | L53: 2019-06-06
C54: 2016-09-18 | D54: EVERSPACE | E54: 29.99 | F54: 0.8 | G54: 2019-06-25 | H54: =IFERROR(E54*(1-F54),0) -> 5.998 | I54: =($G$4-C54)/365 -> 2.778082192 | K54: 0.75 | L54: 2018-12-29
C55: 2017-08-07 | D55: Evochron Legacy | E55: 24.99 | F55: 0.3 | G55: 2019-06-25 | H55: =IFERROR(E55*(1-F55),0) -> 17.493 | I55: =($G$4-C55)/365 -> 1.893150685 | K55: 0.3 | L55: 2018-10-31
C56: 2018-08-16 | D56: EXAPUNKS | E56: 19.99 | F56: 0.25 | G56: 2019-06-25 | H56: =IFERROR(E56*(1-F56),0) -> 14.9925 | I56: =($G$4-C56)/365 -> 0.8684931507 | K56: 0.2 | L56: 2018-10-23
C57: 2018-10-24 | D57: Executive Assault 2 | E57: 24.99 | F57: 0.25 | G57: 2019-06-25 | H57: =IFERROR(E57*(1-F57),0) -> 18.7425 | I57: =($G$4-C57)/365 -> 0.6794520548 | J57: Early Access | K57: 0.2 | L57: 2018-10-24
C58: 2016-05-02 | D58: Factorio | E58: 30 | F58: 0 | G58: 2016-05-02 | H58: =IFERROR(E58*(1-F58),0) -> 30 | I58: =($G$4-C58)/365 -> 3.15890411
C59: 2019-05-14 | D59: Factory Town | E59: 19.99 | F59: 0.2 | G59: 2019-06-25 | H59: =IFERROR(E59*(1-F59),0) -> 15.992 | I59: =($G$4-C59)/365 -> 0.1260273973 | J59: Early Access
C60: 2017-08-04 | D60: Fire Pro Wrestling World | E60: 29.99 | F60: 0.7 | G60: 2019-06-06 | H60: =IFERROR(E60*(1-F60),0) -> 8.997 | I60: =($G$4-C60)/365 -> 1.901369863 | K60: 0.5 | L60: 2019-02-27
C61: 2019-05-14 | D61: Fishing Planet | E61: Free | F61: 0 | G61: 2019-05-14 | H61: =IFERROR(E61*(1-F61),0) -> 0 | I61: =($G$4-C61)/365 -> 0.1260273973 | J61: Free to Play
C62: 2018-02-14 | D62: Fishing: Barents Sea | E62: 24.99 | F62: 0.33 | G62: 2019-06-25 | H62: =IFERROR(E62*(1-F62),0) -> 16.7433 | I62: =($G$4-C62)/365 -> 1.369863014
C63: 2016-08-11 | D63: Football Tactics & Glory | E63: 19.99 | F63: 0.25 | G63: 2019-06-25 | H63: =IFERROR(E63*(1-F63),0) -> 14.9925 | I63: =($G$4-C63)/365 -> 2.882191781 | K63: 0.15 | L63: 2018-12-16
C64: 2017-05-14 | D64: Forts | E64: 14.99 | F64: 0.5 | G64: 2019-06-25 | H64: =IFERROR(E64*(1-F64),0) -> 7.495 | I64: =($G$4-C64)/365 -> 2.126027397 | K64: 0.45 | L64: 2018-12-29
C65: 2019-02-13 | D65: Foundation | E65: 29.99 | F65: 0.2 | G65: 2019-06-25 | H65: =IFERROR(E65*(1-F65),0) -> 23.992 | I65: =($G$4-C65)/365 -> 0.3726027397 | K65: 0.1 | L65: 2019-06-03
C66: 2019-03-05 | D66: Frontier Pilot Simulator | E66: 24.99 | F66: 0.15 | G66: 2019-06-25 | H66: =IFERROR(E66*(1-F66),0) -> 21.2415 | I66: =($G$4-C66)/365 -> 0.3178082192
C67: 2018-09-13 | D67: Frozen Synapse 2 | E67: 29.99 | F67: 0.4 | G67: 2019-06-25 | H67: =IFERROR(E67*(1-F67),0) -> 17.994 | I67: =($G$4-C67)/365 -> 0.7917808219 | K67: 0.3 | L67: 2018-12-29
C68: 2019-05-22 | D68: Gadgeteer | E68: 14.99 | F68: 0 | G68: 2019-05-22 | H68: =IFERROR(E68*(1-F68),0) -> 14.99 | I68: =($G$4-C68)/365 -> 0.104109589 | J68: VR Headset Game
C69: 2019-05-14 | D69: Galactic Civilizations III | E69: 29.99 | F69: 0.85 | G69: 2019-05-14 | H69: =IFERROR(E69*(1-F69),0) -> 4.4985 | I69: =($G$4-C69)/365 -> 0.1260273973
C70: 2019-02-26 | D70: Galaxy on Fire 2 Full HD | E70: 7.99 | F70: 0.69 | G70: 2019-06-25 | H70: =IFERROR(E70*(1-F70),0) -> 2.4769 | I70: =($G$4-C70)/365 -> 0.3369863014
C71: 2019-04-04 | D71: Galaxy Trucker: Extended Edition | E71: 9.99 | F71: 0 | G71: 2019-04-04 | H71: =IFERROR(E71*(1-F71),0) -> 9.99 | I71: =($G$4-C71)/365 -> 0.2356164384
C72: 2019-04-04 | D72: Gloomhaven | E72: Soon | F72: 0 | G72: 2019-04-04 | H72: =IFERROR(E72*(1-F72),0) -> 0 | I72: =($G$4-C72)/365 -> 0.2356164384
C73: 2018-12-09 | D73: Guacamelee! 2 | E73: 19.99 | F73: 0.5 | G73: 2019-06-25 | H73: =IFERROR(E73*(1-F73),0) -> 9.995 | I73: =($G$4-C73)/365 -> 0.5534246575 | K73: 0.25 | L73: 2019-12-09 | M73: 0.4 | N73: 2019-05-22
C74: 2018-07-18 | D74: Gunsmith | E74: 19.99 | F74: 0.4 | G74: 2019-06-25 | H74: =IFERROR(E74*(1-F74),0) -> 11.994 | I74: =($G$4-C74)/365 -> 0.9479452055 | J74: Early Access | K74: 0.33 | L74: 2019-05-28
C75: 2017-05-14 | D75: Halo Wars: Definitive Edition | E75: 19.99 | F75: 0.6 | G75: 2019-06-25 | H75: =IFERROR(E75*(1-F75),0) -> 7.996 | I75: =($G$4-C75)/365 -> 2.126027397 | K75: 0.5 | L75: 2018-11-23
C76: 2016-06-02 | D76: Hearts of Iron IV | E76: 39.99 | F76: 0.6 | G76: 2019-06-25 | H76: =IFERROR(E76*(1-F76),0) -> 15.996 | I76: =($G$4-C76)/365 -> 3.073972603 | K76: 0.6 | L76: 2018-11-23
C77: 2017-11-15 | D77: Heat Signature | E77: 14.99 | F77: 0.66 | G77: 2019-06-10 | H77: =IFERROR(E77*(1-F77),0) -> 5.0966 | I77: =($G$4-C77)/365 -> 1.619178082 | K77: 0.5 | L77: 2018-11-23
C78: 2017-08-20 | D78: Helium Rain | E78: 14.99 | F78: 0.5 | G78: 2019-06-25 | H78: =IFERROR(E78*(1-F78),0) -> 7.495 | I78: =($G$4-C78)/365 -> 1.857534247 | K78: 0.2 | L78: 2018-11-26
C79: 2018-09-20 | D79: Hex Gambit | E79: 12.99 | F79: 0.25 | G79: 2018-12-29 | H79: =IFERROR(E79*(1-F79),0) -> 9.7425 | I79: =($G$4-C79)/365 -> 0.7726027397
C80: 2019-05-29 | D80: HITMAN™ | E80: 0 | F80: 0 | G80: 2019-05-29 | H80: =IFERROR(E80*(1-F80),0) -> 0 | I80: =($G$4-C80)/365 -> 0.08493150685 | J80: Free to Play
C81: 2019-05-29 | D81: HITMAN™ - Game of The Year Edition | E81: 73.64 | F81: 0.75 | G81: 2019-05-29 | H81: =IFERROR(E81*(1-F81),0) -> 18.41 | I81: =($G$4-C81)/365 -> 0.08493150685
C82: 2019-05-29 | D82: HITMAN™ 2 – Starter Pack | E82: 0 | F82: 0 | G82: 2019-05-29 | H82: =IFERROR(E82*(1-F82),0) -> 0 | I82: =($G$4-C82)/365 -> 0.08493150685 | J82: Free to Play
C83: 2017-07-07 | D83: Holy Potatoes! We're in Space?! | E83: 14.99 | F83: 0.75 | G83: 2018-10-31 | H83: =IFERROR(E83*(1-F83),0) -> 3.7475 | I83: =($G$4-C83)/365 -> 1.978082192 | K83: 0.67 | L83: 2019-06-25
C84: 2019-02-22 | D84: Homebrew - Patent Unknown | E84: 17.99 | F84: 0.66 | G84: 2019-06-25 | H84: =IFERROR(E84*(1-F84),0) -> 6.1166 | I84: =($G$4-C84)/365 -> 0.3479452055
C85: 2017-12-31 | D85: Human Resource Machine | E85: 9.99 | F85: 0.5 | G85: 2019-06-25 | H85: =IFERROR(E85*(1-F85),0) -> 4.995 | I85: =($G$4-C85)/365 -> 1.493150685 | K85: 0.35 | L85: 2018-12-29
C86: 2019-03-06 | D86: Hyper Knights | E86: 4.99 | F86: 0.5 | G86: 2019-06-25 | H86: =IFERROR(E86*(1-F86),0) -> 2.495 | I86: =($G$4-C86)/365 -> 0.3150684932 | J86: Arcade Action | K86: 0.5 | L86: 2019-06-06
C87: 2016-10-25 | D87: Imagine Earth | E87: 19.99 | F87: 0.3 | G87: 2019-06-06 | H87: =IFERROR(E87*(1-F87),0) -> 13.993 | I87: =($G$4-C87)/365 -> 2.676712329 | K87: 0.2 | L87: 2016-10-25 | M87: 0.25 | N87: 2019-06-25
C88: 2018-07-18 | D88: Industries of Titan | E88: 0 | F88: 0 | G88: 2019-06-25 | H88: =IFERROR(E88*(1-F88),0) -> 0 | I88: =($G$4-C88)/365 -> 0.9479452055 | J88: Coming Soon | M88: 0.1 | N88: 2019-06-25
C89: 2018-03-10 | D89: Into the Breach | E89: 14.99 | F89: 0.5 | G89: 2019-06-25 | H89: =IFERROR(E89*(1-F89),0) -> 7.495 | I89: =($G$4-C89)/365 -> 1.304109589 | K89: 0.33 | L89: 2018-11-26
C90: 2019-05-14 | D90: Jagged Alliance: Rage! | E90: 19.99 | F90: 0.5 | G90: 2019-06-25 | H90: =IFERROR(E90*(1-F90),0) -> 9.995 | I90: =($G$4-C90)/365 -> 0.1260273973 | K90: 0.5 | L90: 2019-05-14
C91: 2018-06-12 | D91: Jurassic World Evolution | E91: 54.99 | F91: 0.75 | G91: 2018-12-29 | H91: =IFERROR(E91*(1-F91),0) -> 13.7475 | I91: =($G$4-C91)/365 -> 1.046575342 | K91: 0.7 | L91: 2019-06-25
C92: 2018-09-19 | D92: Landinar: Into the Void | E92: 15.99 | F92: 0.1 | G92: 2019-06-25 | H92: =IFERROR(E92*(1-F92),0) -> 14.391 | I92: =($G$4-C92)/365 -> 0.7753424658
C93: 2018-06-23 | D93: Lazy Galaxy | E93: 5.99 | F93: 0.5 | G93: 2019-06-25 | H93: =IFERROR(E93*(1-F93),0) -> 2.995 | I93: =($G$4-C93)/365 -> 1.016438356 | K93: 0.4 | L93: 2018-12-29
C94: 2018-04-25 | D94: LEGO Worlds | E94: 29.99 | F94: 0.5 | G94: 2019-06-25 | H94: =IFERROR(E94*(1-F94),0) -> 14.995 | I94: =($G$4-C94)/365 -> 1.178082192 | K94: 0.5 | L94: 2018-04-25
C95: 2016-09-18 | D95: Mad Games Tycoon | E95: 14.99 | F95: 0.5 | G95: 2019-06-25 | H95: =IFERROR(E95*(1-F95),0) -> 7.495 | I95: =($G$4-C95)/365 -> 2.778082192 | K95: 0.5 | L95: 2018-10-31
C96: 2019-05-22 | D96: Mashinky | E96: 24.99 | F96: 0 | G96: 2019-05-22 | H96: =IFERROR(E96*(1-F96),0) -> 24.99 | I96: =($G$4-C96)/365 -> 0.104109589 | J96: Very much like Railroad Tycoon 3
C97: 2016-02-27 | D97: Master of Orion | E97: 29.99 | F97: 0.75 | G97: 2018-11-23 | H97: =IFERROR(E97*(1-F97),0) -> 7.4975 | I97: =($G$4-C97)/365 -> 3.336986301 | K97: 0.5 | L97: 2019-06-25
C98: 2018-09-16 | D98: Megaquarium | E98: 24.99 | F98: 0.35 | G98: 2019-06-25 | H98: =IFERROR(E98*(1-F98),0) -> 16.2435 | I98: =($G$4-C98)/365 -> 0.7835616438 | K98: 0.25 | L98: 2018-12-29
C99: 2018-07-22 | D99: Middle-earth: Shadow of War | E99: 49.99 | F99: 0.75 | G99: 2018-12-29 | H99: =IFERROR(E99*(1-F99),0) -> 12.4975 | I99: =($G$4-C99)/365 -> 0.9369863014 | K99: 0.5 | L99: 2019-06-25
C100: 2019-05-28 | D100: Monster Hunter: World | E100: 59.99 | F100: 0.5 | G100: 2019-06-25 | H100: =IFERROR(E100*(1-F100),0) -> 29.995 | I100: =($G$4-C100)/365 -> 0.08767123288
C101: 2018-07-18 | D101: Moonlighter | E101: 19.99 | F101: 0.5 | G101: 2019-06-25 | H101: =IFERROR(E101*(1-F101),0) -> 9.995 | I101: =($G$4-C101)/365 -> 0.9479452055 | K101: 0.33 | L101: 2018-12-29 | M101: 0.5 | N101: 2019-05-29
C102: 2018-07-18 | D102: MOTHERGUNSHIP | E102: 24.99 | F102: 0.75 | G102: 2019-06-25 | H102: =IFERROR(E102*(1-F102),0) -> 6.2475 | I102: =($G$4-C102)/365 -> 0.9479452055 | K102: 0.5 | L102: 2018-12-29
C103: 2018-10-05 | D103: Nimbatus - The Space Drone Constructor | E103: 19.99 | F103: 0.25 | G103: 2019-06-25 | H103: =IFERROR(E103*(1-F103),0) -> 14.9925 | I103: =($G$4-C103)/365 -> 0.7315068493 | K103: 0.25 | L103: 2018-12-29
C104: 2019-05-07 | D104: NITE Team 4 - Military Hacking Division | E104: 34.99 | F104: 0.25 | G104: 2019-06-25 | H104: =IFERROR(E104*(1-F104),0) -> 26.2425 | I104: =($G$4-C104)/365 -> 0.1452054795 | K104: 0.2 | L104: 2019-05-07
C105: 2019-01-01 | D105: No Man's Sky | E105: 59.99 | F105: 0.5 | G105: 2019-06-25 | H105: =IFERROR(E105*(1-F105),0) -> 29.995 | I105: =($G$4-C105)/365 -> 0.4904109589 | K105: 0.5 | L105: 2019-01-01
C106: 2017-02-23 | D106: Northgard | E106: 29.99 | F106: 0.5 | G106: 2019-06-25 | H106: =IFERROR(E106*(1-F106),0) -> 14.995 | I106: =($G$4-C106)/365 -> 2.345205479 | K106: 0.5 | L106: 2018-10-31
C107: 2019-05-14 | D107: Objects in Space | E107: 24.99 | F107: 0.3 | G107: 2019-06-25 | H107: =IFERROR(E107*(1-F107),0) -> 17.493 | I107: =($G$4-C107)/365 -> 0.1260273973 | J107: non-fancy old school graphics, but interesting submarine like space gameplay | K107: 0.3 | L107: 2019-05-14
C108: 2017-12-07 | D108: Opus Magnum | E108: 19.99 | F108: 0.5 | G108: 2018-10-23 | H108: =IFERROR(E108*(1-F108),0) -> 9.995 | I108: =($G$4-C108)/365 -> 1.55890411 | K108: 0.33 | L108: 2019-06-25
C109: 2019-05-13 | D109: Out of the Park Baseball 20 | E109: 39.99 | F109: 0.5 | G109: 2019-06-25 | H109: =IFERROR(E109*(1-F109),0) -> 19.995 | I109: =($G$4-C109)/365 -> 0.1287671233 | J109: very detailed and interesting for predicting World Series at the beginning of playoffs
C110: 2018-07-18 | D110: Overload | E110: 29.99 | F110: 0.6 | G110: 2019-06-25 | H110: =IFERROR(E110*(1-F110),0) -> 11.996 | I110: =($G$4-C110)/365 -> 0.9479452055 | K110: 0.33 | L110: 2018-12-29
C111: 2019-01-18 | D111: Oxygen Not Included | E111: 24.99 | F111: 0.45 | G111: 2019-06-25 | H111: =IFERROR(E111*(1-F111),0) -> 13.7445 | I111: =($G$4-C111)/365 -> 0.4438356164 | K111: 0.2 | L111: 2019-01-18 | M111: 0.45 | N111: 2019-06-06
C112: 2019-05-13 | D112: Parkasaurus | E112: 19.99 | F112: 0 | G112: 2019-05-13 | H112: =IFERROR(E112*(1-F112),0) -> 19.99 | I112: =($G$4-C112)/365 -> 0.1287671233 | J112: Early Access
C113: 2016-11-20 | D113: Parkitect | E113: 29.99 | F113: 0.3333 | G113: 2016-11-20 | H113: =IFERROR(E113*(1-F113),0) -> 19.994333 | I113: =($G$4-C113)/365 -> 2.605479452 | K113: 0.2 | L113: 2019-06-25
C114: 2016-10-01 | D114: Particle Fleet: Emergence | E114: 14.99 | F114: 0.67 | G114: 2019-06-25 | H114: =IFERROR(E114*(1-F114),0) -> 4.9467 | I114: =($G$4-C114)/365 -> 2.742465753 | K114: 0.67 | L114: 2018-12-29
C115: 2018-09-25 | D115: Pathfinder: Kingmaker - Enhanced Edition | E115: 39.99 | F115: 0.5 | G115: 2019-06-25 | H115: =IFERROR(E115*(1-F115),0) -> 19.995 | I115: =($G$4-C115)/365 -> 0.7589041096
C116: 2018-03-31 | D116: PC Building Simulator | E116: 19.99 | F116: 0.3 | G116: 2019-06-25 | H116: =IFERROR(E116*(1-F116),0) -> 13.993 | I116: =($G$4-C116)/365 -> 1.246575342 | K116: 0.25 | L116: 2018-10-31
C117: 2018-09-07 | D117: Phantom Brigade | E117: Soon | F117: 0 | G117: 2018-09-07 | H117: =IFERROR(E117*(1-F117),0) -> 0 | I117: =($G$4-C117)/365 -> 0.8082191781
C118: 2015-04-10 | D118: Pillars of Eternity | E118: 29.99 | F118: 0.4 | G118: 2019-06-25 | H118: =IFERROR(E118*(1-F118),0) -> 17.994 | I118: =($G$4-C118)/365 -> 4.221917808 | K118: 0.4 | L118: 2018-10-31
C119: 2019-02-26 | D119: Plane Mechanic Simulator | E119: 11.99 | F119: 0.25 | G119: 2019-06-25 | H119: =IFERROR(E119*(1-F119),0) -> 8.9925 | I119: =($G$4-C119)/365 -> 0.3369863014 | J119: Early Access
C120: 2016-11-06 | D120: Planet Coaster | E120: 44.99 | F120: 0.76 | G120: 2018-12-29 | H120: =IFERROR(E120*(1-F120),0) -> 10.7976 | I120: =($G$4-C120)/365 -> 2.643835616
C121: 2019-06-29 | D121: Pro Cycling Manager 2019 | E121: 31.99 | F121: 0.2 | G121: 2019-06-29 | H121: =IFERROR(E121*(1-F121),0) -> 25.592 | I121: =($G$4-C121)/365 -> 0
C122: 2018-06-13 | D122: Production Line : Car factory simulation | E122: 19.99 | F122: 0.33 | G122: 2019-06-25 | H122: =IFERROR(E122*(1-F122),0) -> 13.3933 | I122: =($G$4-C122)/365 -> 1.043835616 | K122: 0.25 | L122: 2018-11-26
C123: 2018-04-22 | D123: Project AURA | E123: 14.99 | F123: 0.5 | G123: 2019-06-25 | H123: =IFERROR(E123*(1-F123),0) -> 7.495 | I123: =($G$4-C123)/365 -> 1.18630137 | K123: 0.5 | L123: 2019-05-07
C124: 2018-11-03 | D124: Project Hospital | E124: 24.99 | F124: 0.3 | G124: 2019-06-06 | H124: =IFERROR(E124*(1-F124),0) -> 17.493 | I124: =($G$4-C124)/365 -> 0.6520547945 | K124: 0.25 | L124: 2018-12-29 | M124: 0.25 | N124: 2019-06-25
C125: 2016-10-01 | D125: Quantum Break | E125: 39.99 | F125: 0.75 | G125: 2019-06-25 | H125: =IFERROR(E125*(1-F125),0) -> 9.9975 | I125: =($G$4-C125)/365 -> 2.742465753 | K125: 0.75 | L125: 2018-11-23
C126: 2019-04-04 | D126: Race for the Galaxy | E126: 6.99 | F126: 0.3 | G126: 2019-06-25 | H126: =IFERROR(E126*(1-F126),0) -> 4.893 | I126: =($G$4-C126)/365 -> 0.2356164384
C127: 2017-03-25 | D127: Railway Empire | E127: 49.99 | F127: 0.7 | G127: 2019-03-07 | H127: =IFERROR(E127*(1-F127),0) -> 14.997 | I127: =($G$4-C127)/365 -> 2.263013699
C128: 2017-01-14 | D128: Ride 2 | E128: 39.99 | F128: 0.75 | G128: 2019-06-25 | H128: =IFERROR(E128*(1-F128),0) -> 9.9975 | I128: =($G$4-C128)/365 -> 2.454794521 | K128: 0.75 | L128: 2018-11-23
C129: 2016-07-19 | D129: RimWorld | E129: 29.99 | F129: 0 | G129: 2016-07-19 | H129: =IFERROR(E129*(1-F129),0) -> 29.99 | I129: =($G$4-C129)/365 -> 2.945205479
C130: 2018-02-14 | D130: Rise of Industry | E130: 24.99 | F130: 0.35 | G130: 2019-06-25 | H130: =IFERROR(E130*(1-F130),0) -> 16.2435 | I130: =($G$4-C130)/365 -> 1.369863014 | K130: 0.33 | L130: 2018-11-26
C131: 2019-06-06 | D131: Rise of Liberty | E131: 7.99 | F131: 0 | G131: 2019-06-06 | H131: =IFERROR(E131*(1-F131),0) -> 7.99 | I131: =($G$4-C131)/365 -> 0.06301369863 | J131: Very positive ratings and not too spensive
C132: 2018-09-16 | D132: Shadow Corps | E132: Soon | F132: 0 | G132: 2018-09-16 | H132: =IFERROR(E132*(1-F132),0) -> 0 | I132: =($G$4-C132)/365 -> 0.7835616438
C133: 2018-12-29 | D133: Shortest Trip to Earth | E133: 19.99 | F133: 0.3 | G133: 2019-05-29 | H133: =IFERROR(E133*(1-F133),0) -> 13.993 | I133: =($G$4-C133)/365 -> 0.498630137 | K133: 0.25 | L133: 2018-12-29 | M133: 0.25 | N133: 2019-06-25
C134: 2016-05-29 | D134: Signs of Life | E134: 9.99 | F134: 0.35 | G134: 2019-06-25 | H134: =IFERROR(E134*(1-F134),0) -> 6.4935 | I134: =($G$4-C134)/365 -> 3.084931507 | K134: 0.35 | L134: 2018-10-31
C135: 2018-01-08 | D135: SimAirport | E135: 19.99 | F135: 0.4 | G135: 2019-06-25 | H135: =IFERROR(E135*(1-F135),0) -> 11.994 | I135: =($G$4-C135)/365 -> 1.471232877 | K135: 0.3 | L135: 2018-12-29
C136: 2018-09-18 | D136: Space Hulk Ascension | E136: 29.99 | F136: 0.8 | G136: 2019-06-25 | H136: =IFERROR(E136*(1-F136),0) -> 5.998 | I136: =($G$4-C136)/365 -> 0.7780821918 | K136: 0.8 | L136: 2018-11-23
C137: 2016-06-01 | D137: Space Pirates and Zombies 2 | E137: 19.99 | F137: 0.5 | G137: 2019-06-25 | H137: =IFERROR(E137*(1-F137),0) -> 9.995 | I137: =($G$4-C137)/365 -> 3.076712329 | K137: 0.5 | L137: 2018-10-31
C138: 2018-08-01 | D138: Space Station Continuum | E138: Soon | F138: 0 | G138: 2018-08-01 | H138: =IFERROR(E138*(1-F138),0) -> 0 | I138: =($G$4-C138)/365 -> 0.9095890411
C139: 2019-04-04 | D139: Splendor | E139: 9.99 | F139: 0.6 | G139: 2019-06-25 | H139: =IFERROR(E139*(1-F139),0) -> 3.996 | I139: =($G$4-C139)/365 -> 0.2356164384
C140: 2018-01-24 | D140: Star Control: Origins | E140: 39.99 | F140: 0.66 | G140: 2019-06-25 | H140: =IFERROR(E140*(1-F140),0) -> 13.5966 | I140: =($G$4-C140)/365 -> 1.42739726 | K140: 0.25 | L140: 2018-11-26
C141: 2016-06-24 | D141: Star Hammer: The Vanguard Prophecy | E141: 19.99 | F141: 0.75 | G141: 2018-11-23 | H141: =IFERROR(E141*(1-F141),0) -> 4.9975 | I141: =($G$4-C141)/365 -> 3.01369863
C142: 2017-05-31 | D142: Star Trek: Bridge Crew | E142: 39.99 | F142: 0.7 | G142: 2019-06-25 | H142: =IFERROR(E142*(1-F142),0) -> 11.997 | I142: =($G$4-C142)/365 -> 2.079452055 | K142: 0.5 | L142: 2018-11-26
C143: 2018-10-05 | D143: Star Wars Empire at War - Gold Pack | E143: 19.99 | F143: 0.65 | G143: 2019-06-25 | H143: =IFERROR(E143*(1-F143),0) -> 6.9965 | I143: =($G$4-C143)/365 -> 0.7315068493 | K143: 0.65 | L143: 2019-05-07
C144: 2018-08-05 | D144: STARDROP | E144: 19.99 | F144: 0.35 | G144: 2018-12-29 | H144: =IFERROR(E144*(1-F144),0) -> 12.9935 | I144: =($G$4-C144)/365 -> 0.898630137 | K144: 0.32 | L144: 2019-06-25
C145: 2016-05-02 | D145: Starpoint Gemini Warlords | E145: 34.99 | F145: 0.8 | G145: 2019-06-25 | H145: =IFERROR(E145*(1-F145),0) -> 6.998 | I145: =($G$4-C145)/365 -> 3.15890411 | K145: 0.8 | L145: 2019-02-22
C146: 2017-08-20 | D146: Startup Company | E146: 9.99 | F146: 0.4 | G146: 2019-06-25 | H146: =IFERROR(E146*(1-F146),0) -> 5.994 | I146: =($G$4-C146)/365 -> 1.857534247 | K146: 0.4 | L146: 2018-10-23
C147: 2017-12-19 | D147: Stationers | E147: 24.99 | F147: 0.15 | G147: 2019-06-25 | H147: =IFERROR(E147*(1-F147),0) -> 21.2415 | I147: =($G$4-C147)/365 -> 1.526027397 | K147: 0.15 | L147: 2018-10-31
C148: 2016-12-02 | D148: Steep | E148: 29.99 | F148: 0.75 | G148: 2019-06-25 | H148: =IFERROR(E148*(1-F148),0) -> 7.4975 | I148: =($G$4-C148)/365 -> 2.57260274 | K148: 0.67 | L148: 2018-11-23
C149: 2016-08-09 | D149: Stellar Tactics | E149: 19.99 | F149: 0.2 | G149: 2019-06-25 | H149: =IFERROR(E149*(1-F149),0) -> 15.992 | I149: =($G$4-C149)/365 -> 2.887671233
C150: 2015-03-21 | D150: Subnautica | E150: 24.99 | F150: 0.3 | G150: 2019-06-25 | H150: =IFERROR(E150*(1-F150),0) -> 17.493 | I150: =($G$4-C150)/365 -> 4.276712329 | K150: 0.25 | L150: 2018-11-17 | M150: 0.3 | N150: 2019-06-06
C151: 2019-02-13 | D151: Subnautica: Below Zero | E151: 19.99 | F151: 0 | G151: 2019-02-13 | H151: =IFERROR(E151*(1-F151),0) -> 19.99 | I151: =($G$4-C151)/365 -> 0.3726027397
C152: 2018-05-03 | D152: Super Mega Baseball 2 | E152: 29.99 | F152: 0.6 | G152: 2019-06-25 | H152: =IFERROR(E152*(1-F152),0) -> 11.996 | I152: =($G$4-C152)/365 -> 1.156164384 | K152: 0.4 | L152: 2018-11-26
C153: 2019-04-12 | D153: Supraland | E153: 19.99 | F153: 0.33 | G153: 2019-06-25 | H153: =IFERROR(E153*(1-F153),0) -> 13.3933 | I153: =($G$4-C153)/365 -> 0.2136986301
C154: 2018-02-13 | D154: Surviving Mars | E154: 29.99 | F154: 0.66 | G154: 2019-06-25 | H154: =IFERROR(E154*(1-F154),0) -> 10.1966 | I154: =($G$4-C154)/365 -> 1.37260274 | K154: 0.3 | L154: 2018-11-17
C155: 2019-05-14 | D155: Tabletop Gods | E155: 19.99 | F155: 0.25 | G155: 2019-05-22 | H155: =IFERROR(E155*(1-F155),0) -> 14.9925 | I155: =($G$4-C155)/365 -> 0.1260273973 | J155: Early Access
C156: 2017-02-17 | D156: TerraTech | E156: 24.99 | F156: 0.4 | G156: 2019-06-25 | H156: =IFERROR(E156*(1-F156),0) -> 14.994 | I156: =($G$4-C156)/365 -> 2.361643836 | K156: 0.4 | L156: 2019-02-22
C157: 2019-04-04 | D157: The Castles of Burgundy | E157: 14.99 | F157: 0 | G157: 2019-05-13 | H157: =IFERROR(E157*(1-F157),0) -> 14.99 | I157: =($G$4-C157)/365 -> 0.2356164384
C158: 2018-10-24 | D158: The Colonists | E158: 24.99 | F158: 0.3 | G158: 2019-06-25 | H158: =IFERROR(E158*(1-F158),0) -> 17.493 | I158: =($G$4-C158)/365 -> 0.6794520548 | K158: 0.1 | L158: 2018-10-24
C159: 2016-07-21 | D159: The Last Leviathan | E159: 9.99 | F159: 0.33 | G159: 2019-06-25 | H159: =IFERROR(E159*(1-F159),0) -> 6.6933 | I159: =($G$4-C159)/365 -> 2.939726027 | K159: 0.33 | L159: 2018-10-31
C160: 2019-05-02 | D160: The Lord of the Rings: Journeys in Middle-earth | E160: Free | F160: 1 | G160: 2019-05-13 | H160: =IFERROR(E160*(1-F160),0) -> 0 | I160: =($G$4-C160)/365 -> 0.1589041096 | J160: Companion App
C161: 2019-06-29 | D161: The Room Three | E161: 5.99 | F161: 0.75 | G161: 2019-06-29 | H161: =IFERROR(E161*(1-F161),0) -> 1.4975 | I161: 0
C162: 2019-05-22 | D162: The Wild Age | E162: 14.99 | F162: 0.25 | G162: 2019-06-25 | H162: =IFERROR(E162*(1-F162),0) -> 11.2425 | I162: =($G$4-C162)/365 -> 0.104109589 | J162: RTS Tower Defense | K162: 0.2 | L162: 2019-05-22
C163: 2018-09-11 | D163: The Witcher 3: Wild Hunt | E163: 39.99 | F163: 0.7 | G163: 2019-06-25 | H163: =IFERROR(E163*(1-F163),0) -> 11.997 | I163: =($G$4-C163)/365 -> 0.797260274 | K163: 0.5 | L163: 2018-10-31
C164: 2017-10-21 | D164: Think of the Children | E164: 9.99 | F164: 0.6 | G164: 2019-06-25 | H164: =IFERROR(E164*(1-F164),0) -> 3.996 | I164: =($G$4-C164)/365 -> 1.687671233 | K164: 0.5 | L164: 2018-11-23
C165: 2018-08-01 | D165: This Is the Police 2 | E165: 14.99 | F165: 0.34 | G165: 2019-06-25 | H165: =IFERROR(E165*(1-F165),0) -> 9.8934 | I165: =($G$4-C165)/365 -> 0.9095890411 | K165: 0.25 | L165: 2018-11-26
C166: 2017-01-04 | D166: Torment: Tides of Numenera | E166: 44.99 | F166: 0.67 | G166: 2019-06-25 | H166: =IFERROR(E166*(1-F166),0) -> 14.8467 | I166: =($G$4-C166)/365 -> 2.482191781 | K166: 0.67 | L166: 2018-12-29
C167: 2018-12-09 | D167: Total War: Three Kingdoms | E167: 59.99 | F167: 0.1 | G167: 2019-06-25 | H167: =IFERROR(E167*(1-F167),0) -> 53.991 | I167: =($G$4-C167)/365 -> 0.5534246575
C168: 2015-04-22 | D168: Total War: WARHAMMER | E168: 59.99 | F168: 0.75 | G168: 2019-06-25 | H168: =IFERROR(E168*(1-F168),0) -> 14.9975 | I168: =($G$4-C168)/365 -> 4.189041096 | K168: 0.75 | L168: 2018-11-26
C169: 2017-06-20 | D169: Total War: WARHAMMER II | E169: 59.99 | F169: 0.5 | G169: 2019-06-25 | H169: =IFERROR(E169*(1-F169),0) -> 29.995 | I169: =($G$4-C169)/365 -> 2.024657534 | K169: 0.5 | L169: 2018-11-26
C170: 2019-02-27 | D170: Train Valley 2 | E170: 14.99 | F170: 0.25 | G170: 2019-06-25 | H170: =IFERROR(E170*(1-F170),0) -> 11.2425 | I170: =($G$4-C170)/365 -> 0.3342465753
C171: 2019-02-27 | D171: Transport Fever | E171: 34.99 | F171: 0.75 | G171: 2019-06-25 | H171: =IFERROR(E171*(1-F171),0) -> 8.7475 | I171: =($G$4-C171)/365 -> 0.3342465753
C172: 2017-08-20 | D172: Tree of Life | E172: 19.99 | F172: 0.5 | G172: 2018-11-23 | H172: =IFERROR(E172*(1-F172),0) -> 9.995 | I172: =($G$4-C172)/365 -> 1.857534247
C173: 2019-05-13 | D173: Trials of Fire | E173: 15.99 | F173: 0.2 | G173: 2019-06-25 | H173: =IFERROR(E173*(1-F173),0) -> 12.792 | I173: =($G$4-C173)/365 -> 0.1287671233 | J173: Early Access
C174: 2018-07-18 | D174: Two Point Hospital | E174: 34.99 | F174: 0.5 | G174: 2019-06-25 | H174: =IFERROR(E174*(1-F174),0) -> 17.495 | I174: =($G$4-C174)/365 -> 0.9479452055 | K174: 0.2 | L174: 2018-12-29
C175: 2016-12-10 | D175: Ultimate General: Civil War | E175: 29.99 | F175: 0.7 | G175: 2018-11-23 | H175: =IFERROR(E175*(1-F175),0) -> 8.997 | I175: =($G$4-C175)/365 -> 2.550684932 | K175: 0.65 | L175: 2019-06-25
C176: 2019-05-22 | D176: Undead Horde | E176: 16.99 | F176: 0.2 | G176: 2019-06-25 | H176: =IFERROR(E176*(1-F176),0) -> 13.592 | I176: =($G$4-C176)/365 -> 0.104109589
C177: 2019-05-28 | D177: Unheard | E177: 6.99 | F177: 0.3 | G177: 2019-06-25 | H177: =IFERROR(E177*(1-F177),0) -> 4.893 | I177: =($G$4-C177)/365 -> 0.08767123288
C178: 2016-05-02 | D178: Void Destroyer 2 | E178: 14.99 | F178: 0.2 | G178: 2019-06-25 | H178: =IFERROR(E178*(1-F178),0) -> 11.992 | I178: =($G$4-C178)/365 -> 3.15890411 | K178: 0.2 | L178: 2018-10-31
C179: 2018-08-05 | D179: VRSailing by BeTomorrow | E179: 0 | F179: 1 | G179: 2018-08-05 | H179: =IFERROR(E179*(1-F179),0) -> 0 | I179: =($G$4-C179)/365 -> 0.898630137 | J179: Free to Play
C180: 2018-08-05 | D180: Warhammer 40,000: Inquisitor - Martyr | E180: 49.99 | F180: 0.5 | G180: 2019-06-25 | H180: =IFERROR(E180*(1-F180),0) -> 24.995 | I180: =($G$4-C180)/365 -> 0.898630137 | K180: 0.25 | L180: 2018-10-31
C181: 2018-11-28 | D181: Warhammer 40,000: Mechanicus | E181: 29.99 | F181: 0.35 | G181: 2019-06-25 | H181: =IFERROR(E181*(1-F181),0) -> 19.4935 | I181: =($G$4-C181)/365 -> 0.5835616438 | K181: 0.2 | L181: 2018-12-29
C182: 2015-03-07 | D182: Wasteland 2: Director's Cut | E182: 29.99 | F182: 0.5 | G182: 2019-06-25 | H182: =IFERROR(E182*(1-F182),0) -> 14.995 | I182: =($G$4-C182)/365 -> 4.315068493 | K182: 0.5 | L182: 2018-12-29
C183: 2016-08-09 | D183: Wayward Terran Frontier: Zero Falls | E183: 29.99 | F183: 0.25 | G183: 2018-11-26 | H183: =IFERROR(E183*(1-F183),0) -> 22.4925 | I183: =($G$4-C183)/365 -> 2.887671233 | K183: 0.15 | L183: 2019-06-25
C184: 2019-05-13 | D184: What Remains of Edith Finch | E184: 19.99 | F184: 0.55 | G184: 2019-06-25 | H184: =IFERROR(E184*(1-F184),0) -> 8.9955 | I184: =($G$4-C184)/365 -> 0.1287671233 | K184: 0.5 | L184: 2019-05-13
C185: 2019-02-13 | D185: When Skilifts Go Wrong | E185: 14.99 | F185: 0.5 | G185: 2019-06-25 | H185: =IFERROR(E185*(1-F185),0) -> 7.495 | I185: =($G$4-C185)/365 -> 0.3726027397
C186: 2018-01-10 | D186: while True: learn() | E186: 6.99 | F186: 0.25 | G186: 2019-06-25 | H186: =IFERROR(E186*(1-F186),0) -> 5.2425 | I186: =($G$4-C186)/365 -> 1.465753425 | K186: 0.2 | L186: 2018-12-29
C187: 2019-02-26 | D187: Winkeltje: The Little Shop | E187: 9.99 | F187: 0 | G187: 2019-02-26 | H187: =IFERROR(E187*(1-F187),0) -> 9.99 | I187: =($G$4-C187)/365 -> 0.3369863014
C188: 2019-05-02 | D188: Wolfpack | E188: 34.99 | F188: 0 | G188: 2019-05-13 | H188: =IFERROR(E188*(1-F188),0) -> 34.99 | I188: =($G$4-C188)/365 -> 0.1589041096 | J188: Early Access
C189: 2018-11-28 | D189: X4: Foundations | E189: 49.99 | F189: 0.25 | G189: 2019-06-25 | H189: =IFERROR(E189*(1-F189),0) -> 37.4925 | I189: =($G$4-C189)/365 -> 0.5835616438 | K189: 0.25 | L189: 2019-03-06
C190: 2017-07-14 | D190: XCOM 2: War of the Chosen | E190: 39.99 | F190: 0.67 | G190: 2019-06-25 | H190: =IFERROR(E190*(1-F190),0) -> 13.1967 | I190: =($G$4-C190)/365 -> 1.95890411 | K190: 0.5 | L190: 2018-11-23
C191: 2019-04-04 | D191: XenoShyft | E191: 9.99 | F191: 0 | G191: 2019-05-13 | H191: =IFERROR(E191*(1-F191),0) -> 9.99 | I191: =($G$4-C191)/365 -> 0.2356164384
C192: 2018-01-03 | D192: Ylands | E192: 15 | F192: 0.3 | G192: 2019-06-25 | H192: =IFERROR(E192*(1-F192),0) -> 10.5 | I192: =($G$4-C192)/365 -> 1.484931507 | K192: 0.2 | L192: 2018-11-26

Sheet Own
B2: =COUNT(B6:B999) -> 16
B4: =TODAY() -> 2019-06-29 | C4: =TODAY() -> 2019-06-29 | E4: 0 | F4: 0 | G4: =TODAY() -> 2019-06-29 | H4: =IFERROR(E4*(1-F4),0) -> 0
B5: Bought | C5: Added | D5: Game Name | E5: Price | F5: Disc | G5: Last Disc | H5: Total | I5: Notes
B6: 2019-05-13 | C6: 2017-09-15 | D6: Battlestar Galactica Deadlock | E6: 39.99 | F6: 0.6 | G6: 2018-11-23 | H6: =IFERROR(E6*(1-F6),0) -> 15.996
B7: 2019-03-14 | C7: 2018-01-22 | D7: Forged Battalion | E7: 19.99 | F7: 0.5 | G7: 2018-10-23 | H7: 9.995
B8: 2019-03-14 | C8: 2019-01-01 | D8: Galaxy Squad | E8: 9.99 | F8: 0.4 | G8: 2019-01-01 | H8: 5.994
B9: 2019-05-24 | C9: 2018-09-20 | D9: Gladiabots | E9: 14.99 | F9: 0.2 | G9: 2019-05-24 | H9: 11.992
B10: 2019-12-09 | C10: 2019-12-09 | D10: Guacamelee! Super Turbo Championship Edition | E10: 19.99 | F10: 0.85 | G10: 2019-12-09 | H10: 2.9985
B11: 2019-05-14 | C11: 2019-05-14 | D11: Hero of the Kingdom II | E11: 7.99 | F11: 0.881 | G11: 2019-05-14 | H11: 0.95081
B12: 2019-05-29 | C12: 2019-05-29 | D12: Hitman 2: Silent Assassin | E12: 8.99 | F12: 0.8 | G12: 2019-05-29 | H12: 1.798 | I12: Released: 3/15/2007 | J12: 2
B13: 2019-05-29 | C13: 2019-05-29 | D13: Hitman Absolution | E13: 19.99 | F13: 0.8 | G13: 2019-05-29 | H13: 3.998 | I13: Released: 11/20/2012 | J13: 4
B14: 2019-05-29 | C14: 2019-05-29 | D14: Hitman Contracts | E14: 8.99 | F14: 0.8 | G14: 2019-05-29 | H14: 1.798 | I14: Released: 1/21/2014 | J14: 5
B15: 2019-05-29 | C15: 2019-05-29 | D15: Hitman: Blood Money | E15: 9.99 | F15: 0.8 | G15: 2019-05-29 | H15: 1.998 | I15: Released: 3/15/2007 | J15: 3
B16: 2019-05-29 | C16: 2019-05-29 | D16: Hitman: Codename 47 | E16: 7.99 | F16: 0.8 | G16: 2019-05-29 | H16: 1.598 | I16: Released: 3/15/2007 | J16: 1
B17: 2017-06-22 | D17: Offworld Trading Company | E17: 19.99 | F17: 0.5 | G17: 2017-06-22 | H17: 9.995
B18: 2019-03-07 | C18: 2018-01-08 | D18: Space Engineers | E18: 19.99 | F18: 1 | G18: 2019-03-07 | H18: 0 | I18: Steam gave it to me for free due to their system not allowing purchase while on free trial weekend and missing the 50% discount
B19: 2018-10-31 | C19: 2018-06-06 | D19: Sword of the Stars: The Pit | E19: 9.99 | F19: 0.75 | G19: 2018-10-31 | H19: 2.4975
B20: 2019-04-30 | C20: 2018-01-11 | D20: UBOAT | E20: 29.99 | F20: 0.32 | G20: 2018-01-11 | H20: 20.3932 | I20: Early Access
B21: 2018-11-28 | C21: 2019-11-28 | D21: Worms Armageddon | E21: 14.99 | F21: 0.8 | G21: 2018-11-28 | H21: 2.998 | I21: Midweek Madness Sale

Sheet Dropped
B2: =COUNT(B6:B1000) -> 0
B4: =TODAY() -> 2019-06-29 | C4: =TODAY() -> 2019-06-29 | E4: 0 | F4: 0 | G4: =TODAY() -> 2019-06-29 | H4: =IFERROR(E4*(1-F4),0) -> 0
B5: Dropped | C5: Added | D5: Game Name | E5: Price | F5: Disc | G5: Last Disc | H5: Total | I5: Notes
